[Event "Titled Tuesday Blitz April 11 Early 2023"]
[White "Belozerov, Andrei"]
[Black "Trifan, Andrei Ioan"]
[WhiteFideId "4120213"]
[BlackFideId "12967068"]
[WhiteElo "2373"]
[BlackElo "2208"]
[Result "1-0"]
[Round "08"]
[TimeControl "180+2"]
[Date "2023.04.11"]
[WhiteClock "0:00:15"]
[BlackClock "0:00:46"]

1. e4 {[%clk 0:03:00]}  e5 {[%clk 0:02:59]} 2. Nf3 {[%clk 0:03:00]}  Nc6 {[%clk 0:02:59]} 3. Bb5 {[%clk 0:02:59]}  a6 {[%clk 0:02:59]} 4. Ba4 {[%clk 0:03:00]}  Nf6 {[%clk 0:02:59]} 5. O-O {[%clk 0:02:59]}  Be7 {[%clk 0:03:00]} 6. Re1 {[%clk 0:02:59]}  b5 {[%clk 0:03:00]} 7. Bb3 {[%clk 0:02:59]}  d6 {[%clk 0:03:01]} 8. c3 {[%clk 0:02:59]}  O-O {[%clk 0:03:01]} 9. h3 {[%clk 0:03:00]}  Nb8 {[%clk 0:03:02]} 10. d4 {[%clk 0:02:59]}  Nbd7 {[%clk 0:03:02]} 11. Nbd2 {[%clk 0:03:00]}  Bb7 {[%clk 0:03:03]} 12. Bc2 {[%clk 0:02:58]}  Re8 {[%clk 0:03:03]} 13. Nf1 {[%clk 0:02:58]}  Bf8 {[%clk 0:03:03]} 14. Ng3 {[%clk 0:02:58]}  g6 {[%clk 0:03:03]} 15. a4 {[%clk 0:02:57]}  c5 {[%clk 0:03:04]} 16. d5 {[%clk 0:02:55]}  c4 {[%clk 0:03:04]} 17. Bg5 {[%clk 0:02:54]}  h6 {[%clk 0:03:05]} 18. Be3 {[%clk 0:02:54]}  Nc5 {[%clk 0:03:05]} 19. Qd2 {[%clk 0:02:38]}  h5 {[%clk 0:03:05]} 20. Bxc5 {[%clk 0:02:21]}  dxc5 {[%clk 0:03:05]} 21. Nf1 {[%clk 0:02:21]}  Re7 {[%clk 0:02:51]} 22. Qe3 {[%clk 0:02:19]}  Qb6 {[%clk 0:02:47]} 23. N1d2 {[%clk 0:02:16]}  Ne8 {[%clk 0:02:43]} 24. Bd1 {[%clk 0:02:12]}  Nd6 {[%clk 0:02:39]} 25. g4 {[%clk 0:02:11]}  hxg4 {[%clk 0:02:38]} 26. hxg4 {[%clk 0:02:11]}  Bg7 {[%clk 0:02:32]} 27. g5 {[%clk 0:02:10]}  Kf8 {[%clk 0:02:24]} 28. Nh2 {[%clk 0:02:09]}  Ke8 {[%clk 0:02:12]} 29. Bg4 {[%clk 0:02:06]}  Kd8 {[%clk 0:02:03]} 30. Bh3 {[%clk 0:01:18]}  Kc7 {[%clk 0:02:03]} 31. axb5 {[%clk 0:01:02]}  axb5 {[%clk 0:02:04]} 32. Rxa8 {[%clk 0:01:02]}  Bxa8 {[%clk 0:02:03]} 33. Ng4 {[%clk 0:01:01]}  Bb7 {[%clk 0:01:58]} 34. Ra1 {[%clk 0:01:00]}  Kb8 {[%clk 0:01:56]} 35. Qf3 {[%clk 0:00:58]}  Bc8 {[%clk 0:01:49]} 36. Nh6 {[%clk 0:00:55]}  Bxh3 {[%clk 0:01:46]} 37. Qxh3 {[%clk 0:00:55]}  Qc7 {[%clk 0:01:32]} 38. Ng8 {[%clk 0:00:49]}  Re8 {[%clk 0:01:29]} 39. Qh7 {[%clk 0:00:49]}  Qd8 {[%clk 0:01:22]} 40. Nf3 {[%clk 0:00:28]}  Rxg8 {[%clk 0:01:19]} 41. Ra6 {[%clk 0:00:29]}  Nxe4 {[%clk 0:01:12]} 42. Qh4 {[%clk 0:00:23]}  Nd6 {[%clk 0:01:08]} 43. Rc6 {[%clk 0:00:19]}  Kb7 {[%clk 0:01:04]} 44. Rxc5 {[%clk 0:00:17]}  Bf8 {[%clk 0:01:01]} 45. Qg4 {[%clk 0:00:17]}  Nf5 {[%clk 0:00:59]} 46. Rxb5+ {[%clk 0:00:15]}  Ka6 {[%clk 0:00:58]} 47. Qxc4 {[%clk 0:00:15]}  Qa5 {[%clk 0:00:46]} 48. Qc6+ {[%clk 0:00:15]} 1-0


[Site "https://www.chess.com"]

[Event "Titled Tuesday Blitz April 11 Early 2023"]
[White "Itgelt, Khuyagtsogt"]
[Black "egorchess95"]
[WhiteFideId "4902912"]
[WhiteElo "2227"]
[BlackElo "2545"]
[Result "1-0"]
[Round "08"]
[TimeControl "180+2"]
[Date "2023.04.11"]
[WhiteClock "0:00:08"]
[BlackClock "0:00:04"]

1. e4 {[%clk 0:02:55]}  c5 {[%clk 0:02:47]} 2. Nf3 {[%clk 0:02:53]}  Nc6 {[%clk 0:02:47]} 3. Bb5 {[%clk 0:02:51]}  g6 {[%clk 0:02:47]} 4. O-O {[%clk 0:02:49]}  Bg7 {[%clk 0:02:47]} 5. Re1 {[%clk 0:02:50]}  Nf6 {[%clk 0:02:46]} 6. Bxc6 {[%clk 0:02:49]}  bxc6 {[%clk 0:02:42]} 7. d3 {[%clk 0:02:45]}  O-O {[%clk 0:02:36]} 8. Bd2 {[%clk 0:02:43]}  d6 {[%clk 0:02:32]} 9. Bc3 {[%clk 0:02:43]}  e5 {[%clk 0:02:30]} 10. Nbd2 {[%clk 0:02:43]}  Be6 {[%clk 0:02:30]} 11. Nc4 {[%clk 0:02:38]}  Qc7 {[%clk 0:02:30]} 12. h3 {[%clk 0:02:36]}  Rad8 {[%clk 0:02:30]} 13. Qe2 {[%clk 0:02:36]}  Nd7 {[%clk 0:02:29]} 14. b3 {[%clk 0:02:34]}  Kh8 {[%clk 0:02:26]} 15. Nfd2 {[%clk 0:02:24]}  f5 {[%clk 0:02:22]} 16. Nf3 {[%clk 0:02:16]}  f4 {[%clk 0:02:14]} 17. a3 {[%clk 0:02:08]}  h6 {[%clk 0:02:12]} 18. b4 {[%clk 0:02:07]}  g5 {[%clk 0:01:59]} 19. bxc5 {[%clk 0:02:03]}  Nxc5 {[%clk 0:02:00]} 20. Ba5 {[%clk 0:02:02]}  Qd7 {[%clk 0:01:58]} 21. Bxd8 {[%clk 0:02:02]}  Rxd8 {[%clk 0:01:59]} 22. Nh2 {[%clk 0:01:59]}  Bf7 {[%clk 0:01:46]} 23. Rab1 {[%clk 0:01:40]}  Re8 {[%clk 0:01:34]} 24. Rb4 {[%clk 0:01:31]}  d5 {[%clk 0:01:27]} 25. Nd2 {[%clk 0:01:32]}  a5 {[%clk 0:01:20]} 26. Rb2 {[%clk 0:01:30]}  Na4 {[%clk 0:01:19]} 27. Rb3 {[%clk 0:01:16]}  dxe4 {[%clk 0:01:03]} 28. Nxe4 {[%clk 0:01:13]}  Bxb3 {[%clk 0:01:03]} 29. cxb3 {[%clk 0:01:14]}  Nb6 {[%clk 0:01:04]} 30. Qh5 {[%clk 0:01:11]}  Kg8 {[%clk 0:00:57]} 31. Ng4 {[%clk 0:01:11]}  Re6 {[%clk 0:00:58]} 32. Nc5 {[%clk 0:01:05]}  Qe8 {[%clk 0:00:51]} 33. Qxe8+ {[%clk 0:00:56]}  Rxe8 {[%clk 0:00:52]} 34. d4 {[%clk 0:00:57]}  e4 {[%clk 0:00:48]} 35. Nxe4 {[%clk 0:00:57]}  Kh8 {[%clk 0:00:49]} 36. f3 {[%clk 0:00:48]}  Bxd4+ {[%clk 0:00:48]} 37. Kf1 {[%clk 0:00:48]}  Nd5 {[%clk 0:00:21]} 38. Nxh6 {[%clk 0:00:38]}  Ne3+ {[%clk 0:00:22]} 39. Ke2 {[%clk 0:00:39]}  Nxg2 {[%clk 0:00:22]} 40. Nf7+ {[%clk 0:00:39]}  Kg7 {[%clk 0:00:22]} 41. Nd6 {[%clk 0:00:39]}  Re5 {[%clk 0:00:18]} 42. Rc1 {[%clk 0:00:36]}  c5 {[%clk 0:00:12]} 43. Rc4 {[%clk 0:00:32]}  Ne3 {[%clk 0:00:08]} 44. Ra4 {[%clk 0:00:31]}  Nd5 {[%clk 0:00:08]} 45. Rxa5 {[%clk 0:00:28]}  Kg6 {[%clk 0:00:07]} 46. Ra6 {[%clk 0:00:26]}  Kg7 {[%clk 0:00:06]} 47. Kd3 {[%clk 0:00:25]}  Ne3 {[%clk 0:00:06]} 48. Ra7+ {[%clk 0:00:21]}  Kg6 {[%clk 0:00:06]} 49. Ra8 {[%clk 0:00:19]}  Rd5 {[%clk 0:00:05]} 50. Ke2 {[%clk 0:00:12]}  Bg7 {[%clk 0:00:02]} 51. Ra6 {[%clk 0:00:10]}  Kh7 {[%clk 0:00:02]} 52. Ne8 {[%clk 0:00:10]}  Bf8 {[%clk 0:00:02]} 53. N8f6+ {[%clk 0:00:10]}  Kg7 {[%clk 0:00:02]} 54. Ra7+ {[%clk 0:00:09]}  Kg6 {[%clk 0:00:02]} 55. Nxd5 {[%clk 0:00:09]}  Nxd5 {[%clk 0:00:03]} 56. Kd3 {[%clk 0:00:09]}  Ne3 {[%clk 0:00:04]} 57. Ra8 {[%clk 0:00:08]}  Kh5 {[%clk 0:00:04]} 58. Rxf8 {[%clk 0:00:08]}  Kh4 {[%clk 0:00:04]} 59. Rh8# {[%clk 0:00:08]} 1-0


[Site "https://www.chess.com"]

[Event "Titled Tuesday Blitz April 11 Early 2023"]
[White "Francisco Guecamburu, Candela Be"]
[Black "Petrov, Martin"]
[WhiteFideId "160911"]
[BlackFideId "2911086"]
[WhiteElo "2326"]
[BlackElo "2430"]
[Result "0-1"]
[Round "08"]
[TimeControl "180+2"]
[Date "2023.04.11"]
[WhiteClock "0:00:17"]
[BlackClock "0:00:14"]

1. e4 {[%clk 0:03:00]}  c6 {[%clk 0:02:58]} 2. d4 {[%clk 0:03:00]}  d5 {[%clk 0:02:59]} 3. e5 {[%clk 0:02:59]}  Bf5 {[%clk 0:02:59]} 4. h4 {[%clk 0:02:59]}  c5 {[%clk 0:02:50]} 5. g4 {[%clk 0:02:55]}  Bd7 {[%clk 0:02:49]} 6. dxc5 {[%clk 0:02:53]}  e6 {[%clk 0:02:43]} 7. Be3 {[%clk 0:02:46]}  Na6 {[%clk 0:02:41]} 8. Bxa6 {[%clk 0:02:44]}  Qa5+ {[%clk 0:02:37]} 9. Nd2 {[%clk 0:02:38]}  Qxa6 {[%clk 0:02:37]} 10. Nb3 {[%clk 0:02:37]}  Ne7 {[%clk 0:02:34]} 11. Nf3 {[%clk 0:02:34]}  h5 {[%clk 0:02:31]} 12. gxh5 {[%clk 0:02:32]}  Rxh5 {[%clk 0:02:29]} 13. Ng5 {[%clk 0:02:27]}  g6 {[%clk 0:02:26]} 14. Qf3 {[%clk 0:02:25]}  Nf5 {[%clk 0:02:26]} 15. a3 {[%clk 0:02:15]}  Bc6 {[%clk 0:02:06]} 16. Nd4 {[%clk 0:02:14]}  Qc4 {[%clk 0:01:28]} 17. Nxf5 {[%clk 0:01:45]}  exf5 {[%clk 0:01:26]} 18. Qe2 {[%clk 0:01:18]}  Qxe2+ {[%clk 0:01:04]} 19. Kxe2 {[%clk 0:01:18]}  d4 {[%clk 0:01:04]} 20. Bxd4 {[%clk 0:01:17]}  Bxh1 {[%clk 0:01:05]} 21. Rxh1 {[%clk 0:01:18]}  Be7 {[%clk 0:01:06]} 22. Be3 {[%clk 0:01:13]}  Rd8 {[%clk 0:00:57]} 23. b4 {[%clk 0:01:00]}  Rd5 {[%clk 0:00:22]} 24. Nf3 {[%clk 0:00:33]}  a6 {[%clk 0:00:22]} 25. c4 {[%clk 0:00:33]}  Rd8 {[%clk 0:00:22]} 26. b5 {[%clk 0:00:25]}  Ra8 {[%clk 0:00:19]} 27. c6 {[%clk 0:00:06]}  bxc6 {[%clk 0:00:16]} 28. bxc6 {[%clk 0:00:05]}  Rc8 {[%clk 0:00:15]} 29. Nd4 {[%clk 0:00:04]}  Rxh4 {[%clk 0:00:11]} 30. Rb1 {[%clk 0:00:03]}  Bc5 {[%clk 0:00:09]} 31. Nf3 {[%clk 0:00:03]}  Rxc4 {[%clk 0:00:09]} 32. Rb7 {[%clk 0:00:02]}  Bxe3 {[%clk 0:00:07]} 33. fxe3 {[%clk 0:00:03]}  R4xc6 {[%clk 0:00:07]} 34. Ng5 {[%clk 0:00:03]}  R8c7 {[%clk 0:00:05]} 35. Rb8+ {[%clk 0:00:03]}  Ke7 {[%clk 0:00:06]} 36. Nh7 {[%clk 0:00:03]}  Rc5 {[%clk 0:00:06]} 37. Nf6 {[%clk 0:00:02]}  Rxe5 {[%clk 0:00:06]} 38. Ng8+ {[%clk 0:00:02]}  Kd7 {[%clk 0:00:05]} 39. Rb6 {[%clk 0:00:02]}  Re6 {[%clk 0:00:05]} 40. Nf6+ {[%clk 0:00:02]}  Kc8 {[%clk 0:00:03]} 41. Nd5 {[%clk 0:00:01]}  Rxb6 {[%clk 0:00:03]} 42. Nxb6+ {[%clk 0:00:02]}  Kb7 {[%clk 0:00:03]} 43. Nd5 {[%clk 0:00:02]}  Rd7 {[%clk 0:00:04]} 44. Nb4 {[%clk 0:00:03]}  Rd6 {[%clk 0:00:04]} 45. Nc2 {[%clk 0:00:04]}  a5 {[%clk 0:00:04]} 46. Nd4 {[%clk 0:00:04]}  Rxd4 {[%clk 0:00:04]} 47. exd4 {[%clk 0:00:05]}  Kc6 {[%clk 0:00:05]} 48. Ke3 {[%clk 0:00:05]}  Kd5 {[%clk 0:00:06]} 49. Kf4 {[%clk 0:00:06]}  Kxd4 {[%clk 0:00:05]} 50. Kg5 {[%clk 0:00:07]}  Kc4 {[%clk 0:00:06]} 51. Kf6 {[%clk 0:00:08]}  Kb3 {[%clk 0:00:07]} 52. Kxf7 {[%clk 0:00:09]}  Kxa3 {[%clk 0:00:07]} 53. Kxg6 {[%clk 0:00:09]}  f4 {[%clk 0:00:08]} 54. Kf5 {[%clk 0:00:10]}  f3 {[%clk 0:00:09]} 55. Ke5 {[%clk 0:00:11]}  f2 {[%clk 0:00:10]} 56. Ke6 {[%clk 0:00:12]}  f1=Q {[%clk 0:00:11]} 57. Kd6 {[%clk 0:00:13]}  Kb3 {[%clk 0:00:12]} 58. Kd7 {[%clk 0:00:13]}  a4 {[%clk 0:00:13]} 59. Kc7 {[%clk 0:00:14]}  a3 {[%clk 0:00:13]} 60. Kc6 {[%clk 0:00:15]}  a2 {[%clk 0:00:14]} 61. Kb7 {[%clk 0:00:16]}  a1=Q {[%clk 0:00:15]} 62. Kc7 {[%clk 0:00:17]}  Qc4+ {[%clk 0:00:14]} 0-1


[Site "https://www.chess.com"]

[Event "Titled Tuesday Blitz April 11 Early 2023"]
[White "Budrewicz, Krzysztof"]
[Black "Megalios, Konstantinos"]
[WhiteFideId "1127950"]
[BlackFideId "4238044"]
[WhiteElo "2230"]
[BlackElo "2277"]
[Result "1-0"]
[Round "08"]
[TimeControl "180+2"]
[Date "2023.04.11"]
[WhiteClock "0:01:30"]
[BlackClock "0:00:36"]

1. d4 {[%clk 0:03:00]}  Nf6 {[%clk 0:02:56]} 2. c4 {[%clk 0:03:00]}  c5 {[%clk 0:02:57]} 3. d5 {[%clk 0:03:00]}  b5 {[%clk 0:02:57]} 4. Nf3 {[%clk 0:03:01]}  g6 {[%clk 0:02:56]} 5. Qc2 {[%clk 0:03:00]}  bxc4 {[%clk 0:02:56]} 6. e4 {[%clk 0:03:00]}  d6 {[%clk 0:02:56]} 7. Bxc4 {[%clk 0:03:00]}  Bg7 {[%clk 0:02:57]} 8. O-O {[%clk 0:03:01]}  O-O {[%clk 0:02:57]} 9. Nc3 {[%clk 0:03:01]}  Nbd7 {[%clk 0:02:53]} 10. h3 {[%clk 0:02:59]}  Nb6 {[%clk 0:02:48]} 11. Bb5 {[%clk 0:02:57]}  Bd7 {[%clk 0:02:41]} 12. a4 {[%clk 0:02:53]}  Bxb5 {[%clk 0:02:13]} 13. axb5 {[%clk 0:02:52]}  a5 {[%clk 0:02:13]} 14. bxa6 {[%clk 0:02:43]}  Qc8 {[%clk 0:02:12]} 15. Qe2 {[%clk 0:02:42]}  c4 {[%clk 0:02:11]} 16. Nd4 {[%clk 0:02:37]}  Rxa6 {[%clk 0:02:08]} 17. Rxa6 {[%clk 0:02:37]}  Qxa6 {[%clk 0:02:09]} 18. Nc6 {[%clk 0:02:37]}  Re8 {[%clk 0:02:04]} 19. Bg5 {[%clk 0:02:35]}  Kf8 {[%clk 0:02:00]} 20. f4 {[%clk 0:02:28]}  e6 {[%clk 0:01:59]} 21. Qf3 {[%clk 0:02:08]}  exd5 {[%clk 0:01:55]} 22. exd5 {[%clk 0:02:08]}  Na4 {[%clk 0:01:35]} 23. f5 {[%clk 0:02:01]}  Nxc3 {[%clk 0:01:31]} 24. bxc3 {[%clk 0:01:58]}  Qb6+ {[%clk 0:01:06]} 25. Kh1 {[%clk 0:01:55]}  Kg8 {[%clk 0:00:42]} 26. Bxf6 {[%clk 0:01:53]}  Re3 {[%clk 0:00:36]} 27. Qf4 {[%clk 0:01:30]} 1-0


[Site "https://www.chess.com"]

[Event "Titled Tuesday Blitz April 11 Early 2023"]
[White "Kvaloy, Aksel Bu"]
[Black "Dobre, Claudiu-Cristian"]
[WhiteFideId "1528815"]
[BlackFideId "1211854"]
[WhiteElo "2208"]
[BlackElo "2207"]
[Result "1-0"]
[Round "08"]
[TimeControl "180+2"]
[Date "2023.04.11"]
[WhiteClock "0:00:17"]
[BlackClock "0:00:06"]

1. d4 {[%clk 0:02:59]}  f5 {[%clk 0:02:59]} 2. Nc3 {[%clk 0:02:57]}  Nf6 {[%clk 0:02:52]} 3. e4 {[%clk 0:02:55]}  fxe4 {[%clk 0:02:51]} 4. Bg5 {[%clk 0:02:54]}  c6 {[%clk 0:02:51]} 5. f3 {[%clk 0:02:52]}  d5 {[%clk 0:02:50]} 6. Bxf6 {[%clk 0:02:48]}  exf6 {[%clk 0:02:48]} 7. fxe4 {[%clk 0:02:49]}  Bb4 {[%clk 0:02:47]} 8. exd5 {[%clk 0:02:41]}  O-O {[%clk 0:02:47]} 9. Bd3 {[%clk 0:02:39]}  Qxd5 {[%clk 0:02:37]} 10. Qd2 {[%clk 0:02:24]}  Re8+ {[%clk 0:02:29]} 11. Nge2 {[%clk 0:02:24]}  Qxg2 {[%clk 0:02:25]} 12. O-O-O {[%clk 0:02:22]}  Qg5 {[%clk 0:01:54]} 13. Nf4 {[%clk 0:02:19]}  Bxc3 {[%clk 0:01:23]} 14. bxc3 {[%clk 0:02:17]}  Nd7 {[%clk 0:01:00]} 15. Rhg1 {[%clk 0:02:10]}  Qh6 {[%clk 0:01:00]} 16. Rde1 {[%clk 0:01:59]}  Rxe1+ {[%clk 0:00:49]} 17. Rxe1 {[%clk 0:02:00]}  Nb6 {[%clk 0:00:49]} 18. Re8+ {[%clk 0:01:58]}  Kf7 {[%clk 0:00:49]} 19. Qe3 {[%clk 0:01:44]}  Nd5 {[%clk 0:00:32]} 20. Bc4 {[%clk 0:01:41]}  Qxf4 {[%clk 0:00:31]} 21. Qxf4 {[%clk 0:01:39]}  Kxe8 {[%clk 0:00:31]} 22. Bxd5 {[%clk 0:01:37]}  cxd5 {[%clk 0:00:31]} 23. Qc7 {[%clk 0:01:37]}  Kf8 {[%clk 0:00:20]} 24. Qd8+ {[%clk 0:01:34]}  Kf7 {[%clk 0:00:20]} 25. h4 {[%clk 0:01:33]}  a5 {[%clk 0:00:17]} 26. a4 {[%clk 0:01:32]}  h5 {[%clk 0:00:17]} 27. Kd2 {[%clk 0:01:31]}  Kg6 {[%clk 0:00:16]} 28. Qe8+ {[%clk 0:01:29]}  Kh6 {[%clk 0:00:15]} 29. Ke3 {[%clk 0:01:25]}  b6 {[%clk 0:00:15]} 30. Qc6 {[%clk 0:01:23]}  Rb8 {[%clk 0:00:15]} 31. Qxd5 {[%clk 0:01:16]}  Ba6 {[%clk 0:00:13]} 32. Qf7 {[%clk 0:01:14]}  Rc8 {[%clk 0:00:12]} 33. d5 {[%clk 0:01:13]}  Bc4 {[%clk 0:00:13]} 34. Kd4 {[%clk 0:01:10]}  Ba2 {[%clk 0:00:13]} 35. Qe7 {[%clk 0:01:06]}  Rc4+ {[%clk 0:00:13]} 36. Kd3 {[%clk 0:01:05]}  Rc5 {[%clk 0:00:12]} 37. d6 {[%clk 0:01:03]}  Rd5+ {[%clk 0:00:12]} 38. Ke3 {[%clk 0:01:00]}  Rd1 {[%clk 0:00:11]} 39. Ke2 {[%clk 0:00:57]}  Rd5 {[%clk 0:00:10]} 40. d7 {[%clk 0:00:57]}  Bc4+ {[%clk 0:00:10]} 41. Kf2 {[%clk 0:00:54]}  Rf5+ {[%clk 0:00:09]} 42. Kg3 {[%clk 0:00:53]}  Bd5 {[%clk 0:00:08]} 43. d8=Q {[%clk 0:00:51]}  Rf3+ {[%clk 0:00:08]} 44. Kh2 {[%clk 0:00:50]}  Rf2+ {[%clk 0:00:07]} 45. Kg1 {[%clk 0:00:51]}  Bf3 {[%clk 0:00:06]} 46. Qh8+ {[%clk 0:00:17]} 1-0


[Site "https://www.chess.com"]

[Event "Titled Tuesday Blitz April 11 Early 2023"]
[White "Dominguez Pons, Eric"]
[Black "Souleidis, Georgios"]
[WhiteFideId "2262916"]
[BlackFideId "4206827"]
[WhiteElo "2302"]
[BlackElo "2401"]
[Result "0-1"]
[Round "08"]
[TimeControl "180+2"]
[Date "2023.04.11"]
[WhiteClock "0:01:22"]
[BlackClock "0:00:38"]

1. d4 {[%clk 0:03:00]}  Nf6 {[%clk 0:03:00]} 2. Nf3 {[%clk 0:02:59]}  g6 {[%clk 0:03:00]} 3. Nbd2 {[%clk 0:02:59]}  d5 {[%clk 0:03:00]} 4. e3 {[%clk 0:02:59]}  Bg7 {[%clk 0:03:01]} 5. Bd3 {[%clk 0:02:59]}  O-O {[%clk 0:03:01]} 6. O-O {[%clk 0:03:00]}  Nbd7 {[%clk 0:03:01]} 7. e4 {[%clk 0:02:58]}  dxe4 {[%clk 0:03:01]} 8. Nxe4 {[%clk 0:02:59]}  Nxe4 {[%clk 0:03:01]} 9. Bxe4 {[%clk 0:03:00]}  c5 {[%clk 0:03:00]} 10. Be3 {[%clk 0:02:57]}  cxd4 {[%clk 0:03:00]} 11. Bxd4 {[%clk 0:02:57]}  Bxd4 {[%clk 0:02:46]} 12. Qxd4 {[%clk 0:02:57]}  Nf6 {[%clk 0:02:46]} 13. Qe3 {[%clk 0:02:44]}  Nxe4 {[%clk 0:02:31]} 14. Qxe4 {[%clk 0:02:45]}  Qc7 {[%clk 0:02:31]} 15. Rfe1 {[%clk 0:02:43]}  Re8 {[%clk 0:02:23]} 16. h4 {[%clk 0:02:42]}  Bf5 {[%clk 0:02:23]} 17. Qe3 {[%clk 0:02:41]}  Qxc2 {[%clk 0:02:17]} 18. Qh6 {[%clk 0:02:34]}  Qxb2 {[%clk 0:02:08]} 19. Ne5 {[%clk 0:02:28]}  Rac8 {[%clk 0:01:48]} 20. g4 {[%clk 0:02:28]}  Bc2 {[%clk 0:01:48]} 21. Qd2 {[%clk 0:02:19]}  Qc3 {[%clk 0:01:40]} 22. Qf4 {[%clk 0:02:18]}  f6 {[%clk 0:01:31]} 23. Nf3 {[%clk 0:02:17]}  Rc4 {[%clk 0:01:27]} 24. Qg3 {[%clk 0:02:14]}  Be4 {[%clk 0:01:21]} 25. Rxe4 {[%clk 0:01:45]}  Rxe4 {[%clk 0:01:17]} 26. Rd1 {[%clk 0:01:45]}  Qc8 {[%clk 0:00:42]} 27. Nh2 {[%clk 0:01:41]}  Qe6 {[%clk 0:00:41]} 28. f3 {[%clk 0:01:36]}  Re2 {[%clk 0:00:40]} 29. a4 {[%clk 0:01:35]}  Rc8 {[%clk 0:00:40]} 30. h5 {[%clk 0:01:33]}  Rcc2 {[%clk 0:00:39]} 31. Rd8+ {[%clk 0:01:24]}  Kf7 {[%clk 0:00:38]} 32. hxg6+ {[%clk 0:01:23]}  hxg6 {[%clk 0:00:38]} 33. Nf1 {[%clk 0:01:23]}  Rg2+ {[%clk 0:00:38]} 34. Qxg2 {[%clk 0:01:22]}  Rxg2+ {[%clk 0:00:39]} 35. Kxg2 {[%clk 0:01:23]}  Qe2+ {[%clk 0:00:38]} 36. Kg1 {[%clk 0:01:24]}  Qa6 {[%clk 0:00:38]} 37. Rd4 {[%clk 0:01:22]}  Qb6 {[%clk 0:00:38]} 0-1


[Site "https://www.chess.com"]

[Event "Titled Tuesday Blitz April 11 Early 2023"]
[White "Vlassov, Nikolai"]
[Black "Gil Alba, Hector Luis"]
[WhiteFideId "4103360"]
[BlackFideId "3504670"]
[WhiteElo "2324"]
[BlackElo "2331"]
[Result "0-1"]
[Round "08"]
[TimeControl "180+2"]
[Date "2023.04.11"]
[WhiteClock "0:00:28"]
[BlackClock "0:01:07"]

1. e4 {[%clk 0:03:00]}  c5 {[%clk 0:02:58]} 2. c3 {[%clk 0:03:00]}  d6 {[%clk 0:02:57]} 3. d4 {[%clk 0:03:00]}  Nf6 {[%clk 0:02:57]} 4. Bd3 {[%clk 0:02:59]}  cxd4 {[%clk 0:02:51]} 5. cxd4 {[%clk 0:02:59]}  Nc6 {[%clk 0:02:51]} 6. d5 {[%clk 0:02:53]}  Ne5 {[%clk 0:02:50]} 7. Bc2 {[%clk 0:02:52]}  g6 {[%clk 0:02:48]} 8. Nc3 {[%clk 0:02:51]}  Bg7 {[%clk 0:02:48]} 9. f4 {[%clk 0:02:50]}  Ned7 {[%clk 0:02:47]} 10. Nf3 {[%clk 0:02:49]}  O-O {[%clk 0:02:47]} 11. O-O {[%clk 0:02:43]}  a6 {[%clk 0:02:41]} 12. h3 {[%clk 0:02:42]}  Nc5 {[%clk 0:02:40]} 13. e5 {[%clk 0:02:40]}  dxe5 {[%clk 0:02:38]} 14. fxe5 {[%clk 0:02:40]}  Nfd7 {[%clk 0:02:38]} 15. b4 {[%clk 0:02:33]}  Nxe5 {[%clk 0:02:03]} 16. bxc5 {[%clk 0:02:31]}  Qa5 {[%clk 0:01:59]} 17. Bb2 {[%clk 0:02:15]}  Nc4 {[%clk 0:01:54]} 18. Qe1 {[%clk 0:01:22]}  Qxc5+ {[%clk 0:01:44]} 19. Kh1 {[%clk 0:01:17]}  Nxb2 {[%clk 0:01:43]} 20. Ne5 {[%clk 0:01:08]}  Qd4 {[%clk 0:01:33]} 21. Nxf7 {[%clk 0:00:48]}  Rxf7 {[%clk 0:01:26]} 22. Rxf7 {[%clk 0:00:47]}  Kxf7 {[%clk 0:01:22]} 23. Ne4 {[%clk 0:00:47]}  Nd3 {[%clk 0:01:14]} 24. Ng5+ {[%clk 0:00:37]}  Kg8 {[%clk 0:01:13]} 25. Qxe7 {[%clk 0:00:28]}  Qxa1+ {[%clk 0:01:12]} 26. Kh2 {[%clk 0:00:28]}  Qe5+ {[%clk 0:01:07]} 0-1


[Site "https://www.chess.com"]

[Event "Titled Tuesday Blitz April 11 Early 2023"]
[White "KRUMMEL2008"]
[Black "Gonzalez, Francisco Silva"]
[BlackFideId "1512285"]
[WhiteElo "2599"]
[BlackElo "2074"]
[Result "0-1"]
[Round "08"]
[TimeControl "180+2"]
[Date "2023.04.11"]
[WhiteClock "0:00:07"]
[BlackClock "0:01:21"]

1. e4 {[%clk 0:03:00]}  e5 {[%clk 0:02:57]} 2. Nf3 {[%clk 0:03:00]}  Nc6 {[%clk 0:02:58]} 3. Bc4 {[%clk 0:03:00]}  Bc5 {[%clk 0:02:57]} 4. c3 {[%clk 0:02:59]}  Nf6 {[%clk 0:02:57]} 5. d3 {[%clk 0:02:59]}  d6 {[%clk 0:02:56]} 6. O-O {[%clk 0:03:00]}  a6 {[%clk 0:02:57]} 7. a4 {[%clk 0:02:58]}  Ba7 {[%clk 0:02:57]} 8. Re1 {[%clk 0:02:57]}  O-O {[%clk 0:02:55]} 9. h3 {[%clk 0:02:28]}  Ne7 {[%clk 0:02:54]} 10. d4 {[%clk 0:02:25]}  Ng6 {[%clk 0:02:54]} 11. Nbd2 {[%clk 0:02:25]}  h6 {[%clk 0:02:51]} 12. Bb3 {[%clk 0:02:19]}  Re8 {[%clk 0:02:51]} 13. Bc2 {[%clk 0:02:13]}  c5 {[%clk 0:02:46]} 14. Nf1 {[%clk 0:01:39]}  cxd4 {[%clk 0:02:41]} 15. cxd4 {[%clk 0:01:38]}  Be6 {[%clk 0:02:41]} 16. d5 {[%clk 0:01:24]}  Bd7 {[%clk 0:02:40]} 17. Ne3 {[%clk 0:01:17]}  Rc8 {[%clk 0:02:37]} 18. Bd2 {[%clk 0:01:14]}  Nf4 {[%clk 0:02:34]} 19. Rc1 {[%clk 0:01:10]}  Qb6 {[%clk 0:02:27]} 20. b3 {[%clk 0:01:07]}  Rc7 {[%clk 0:02:24]} 21. Rf1 {[%clk 0:01:06]}  Rec8 {[%clk 0:02:23]} 22. Nc4 {[%clk 0:01:06]}  Rxc4 {[%clk 0:02:12]} 23. bxc4 {[%clk 0:01:07]}  Rxc4 {[%clk 0:02:08]} 24. Be3 {[%clk 0:01:06]}  Rc5 {[%clk 0:02:07]} 25. Rb1 {[%clk 0:01:00]}  Qc7 {[%clk 0:02:06]} 26. Bxc5 {[%clk 0:00:58]}  Bxc5 {[%clk 0:02:06]} 27. Qd2 {[%clk 0:00:46]}  g5 {[%clk 0:02:03]} 28. Kh2 {[%clk 0:00:44]}  Qc8 {[%clk 0:02:00]} 29. Ng1 {[%clk 0:00:41]}  b6 {[%clk 0:01:49]} 30. Bd3 {[%clk 0:00:39]}  Bxa4 {[%clk 0:01:46]} 31. g3 {[%clk 0:00:30]}  Nxd3 {[%clk 0:01:44]} 32. Qxd3 {[%clk 0:00:31]}  Bb5 {[%clk 0:01:41]} 33. Rxb5 {[%clk 0:00:31]}  axb5 {[%clk 0:01:41]} 34. Qxb5 {[%clk 0:00:32]}  Nxe4 {[%clk 0:01:40]} 35. f3 {[%clk 0:00:19]}  Nf6 {[%clk 0:01:36]} 36. Qc6 {[%clk 0:00:18]}  Qa6 {[%clk 0:01:33]} 37. Re1 {[%clk 0:00:14]}  Qa5 {[%clk 0:01:28]} 38. Rf1 {[%clk 0:00:13]}  Qd2+ {[%clk 0:01:26]} 39. Kh1 {[%clk 0:00:14]}  Qd3 {[%clk 0:01:24]} 40. Qc8+ {[%clk 0:00:12]}  Kg7 {[%clk 0:01:24]} 41. g4 {[%clk 0:00:10]}  Qxf1 {[%clk 0:01:22]} 42. Qf5 {[%clk 0:00:07]}  Qxg1# {[%clk 0:01:21]} 0-1


[Site "https://www.chess.com"]